fUSD/lending_fUSD_20251217
["ID","MTS","AMOUNT","RATE_DAILY","PERIOD"]
[398924677,1765999839650,-500.0,0.0001395,2]
[398924678,1765999839659,-500.0,0.0001395,2]
[398924679,1765999839668,-500.0,0.0001395,2]
[398924680,1765999839677,-500.0,0.0001395,2]
[398924681,1765999839692,-500.0,0.0001395,2]
[398924682,1765999839707,-500.0,0.0001395,2]
[398924683,1765999839718,-500.0,0.0001395,2]
[398924684,1765999839727,-500.0,0.0001395,2]
[398924685,1765999839736,-500.0,0.0001395,2]
[398924686,1765999839746,-500.0,0.0001395,2]
[398924687,1765999839755,-500.0,0.0001395,2]
[398924688,1765999839764,-500.0,0.0001395,2]
[398924689,1765999839773,-500.0,0.0001395,2]
[398924690,1765999839782,-500.0,0.0001395,2]
[398924691,1765999839791,-499.99999999,0.0001395,2]
[398924692,1765999839800,-500.0,0.00013957,2]
[398924693,1765999839809,-500.0,0.00013957,2]
[398924694,1765999839818,-500.0,0.00013957,2]
[398924695,1765999839827,-1000.0,0.00013958,2]
[398924696,1765999839836,-500.0,0.00014057,2]
[398924697,1765999839846,-500.0,0.00014057,2]
[398924698,1765999839855,-500.0,0.00014057,2]
[398924699,1765999839865,-500.0,0.00014057,2]
[398924700,1765999839874,-500.0,0.00014059,2]
[398924701,1765999839883,-500.0,0.00014059,2]
[398924702,1765999839892,-500.0,0.00014059,2]
[398924703,1765999839901,-500.0,0.00014059,2]
[398924704,1765999839912,-500.0,0.00014059,2]
[398924705,1765999839921,-500.0,0.00014059,2]
[398924706,1765999839931,-504.60053044,0.00014059,2]
[398924707,1765999839940,-500.0,0.00014059,2]
[398924708,1765999839950,-500.0,0.00014059,2]
[398924709,1765999839958,-500.0,0.00014059,2]
[398924710,1765999839967,-500.0,0.00014059,2]
[398924711,1765999839977,-500.0,0.00014059,2]
[398924712,1765999839987,-166.66,0.00014305,2]
[398924713,1765999839997,-300.0,0.00014392,2]
[398924714,1765999840006,-300.0,0.00014392,2]
[398924715,1765999840016,-300.0,0.00014392,2]
[398924716,1765999840026,-250.0,0.00014392,2]
[398924717,1765999840037,-300.0,0.00014392,2]
[398924718,1765999840047,-300.0,0.00014392,2]
[398924720,1765999840056,-300.0,0.00014392,2]
[398924722,1765999840065,-250.0,0.00014392,2]
[398924724,1765999840074,-300.0,0.00014392,2]
[398924726,1765999840084,-255.0,0.00014405,2]
[398924728,1765999840094,-300.0,0.00014444,2]
[398924730,1765999840105,-300.0,0.00014444,2]
[398924731,1765999840115,-500.98827769,0.00014468,2]
[398924734,1765999840125,-1045.7565145,0.00014468,2]
[398924736,1765999840135,-166.66,0.00014526,2]
[398924737,1765999840144,-420.0,0.00014581,2]
[398924739,1765999840153,-1680.0,0.0001463,2]
[398924742,1765999840162,-166.66,0.00014762,2]
[398924744,1765999840172,-166.66,0.00014831,2]
[398924745,1765999840181,-20213.7134523,0.00015,2]
[398924748,1765999840190,-301.05,0.00015041,2]
[398924749,1765999840199,-900.0,0.00015068,2]
[398924750,1765999840208,-253.87,0.00015068,2]
[398924751,1765999840217,-1000.0,0.00015108,2]
[398924752,1765999840226,-166.66,0.00015137,2]
[398924753,1765999840235,-166.66,0.0001522,2]
[398924754,1765999840244,-3406.27,0.0001529,2]
[398924755,1765999840254,-3989.59,0.0001529,2]
[398924756,1765999840263,-166.66,0.00015443,2]
[398924757,1765999840273,-500.0,0.00015473,2]
[398924758,1765999840282,-500.0,0.00015473,2]
[398924759,1765999840292,-500.0,0.00015473,2]
[398924760,1765999840301,-275.4465995,0.00015481,2]
[398924761,1765999840311,-583.91324744,0.00015481,2]
[398924762,1765999840321,-500.0,0.00015481,2]
[398924763,1765999840331,-226322.60873608,0.00015482,2]
[398924764,1765999840341,-433.0,0.00015602,2]
[398924765,1765999840351,-166.66,0.00015677,2]
[398924766,1765999840360,-166.66,0.00015749,2]
[398924767,1765999840369,-2227.88016117,0.00015807,2]
[398924768,1765999840379,-328.11547292,0.000159,2]
[398924769,1765999840388,-587.0,0.00015986,2]
[398924770,1765999840398,-4942.32569661,0.00016,2]
[398924771,1765999840407,-141871.57293145,0.00016,4]
[398924772,1765999840415,-1000.0,0.00016021,2]
[398924773,1765999840424,-1000.0,0.00016021,2]
[398924774,1765999840435,-1000.0,0.00016021,2]
[398924775,1765999840444,-166.66,0.00016055,2]
[398924776,1765999840453,-2351.0,0.00016093,2]
[398924777,1765999840462,-166.66,0.00016134,2]
[398924778,1765999840472,-5000.00768723,0.000162,5]
[398924779,1765999840481,-10000.0,0.00016338,2]
[398924780,1765999840490,-499.999999,0.00016376,2]
[398924781,1765999840499,-500.0,0.00016437,2]
[398924782,1765999840508,-500.0,0.00016437,2]
[398924783,1765999840517,-460.64,0.00016437,2]
[398924784,1765999840526,-386.84,0.00016438,2]
[398924785,1765999840535,-500.0,0.00016438,2]
[398924786,1765999840543,-500.0,0.00016438,2]
[398924787,1765999840552,-500.0,0.00016438,2]
[398924788,1765999840562,-500.0,0.00016438,2]
[398924789,1765999840570,-500.0,0.00016438,2]
[398924790,1765999840579,-500.0,0.00016438,2]
[398924791,1765999840589,-500.0,0.00016438,2]
[398924792,1765999840598,-500.0,0.00016438,2]
[398924793,1765999840608,-450.0,0.00016438,2]
[398924794,1765999840617,-500.0,0.00016438,2]
[398924795,1765999840625,-500.0,0.00016438,2]
[398924796,1765999840634,-500.0,0.00016438,2]
[398924797,1765999840643,-500.0,0.00016438,2]
[398924798,1765999840652,-500.0,0.00016438,2]
[398924799,1765999840661,-500.0,0.00016438,2]
[398924800,1765999840671,-500.0,0.00016438,2]
[398924801,1765999840681,-500.0,0.00016438,2]
[398924802,1765999840693,-500.0,0.00016438,2]
[398924803,1765999840704,-500.0,0.00016438,2]
[398924804,1765999840714,-500.0,0.00016438,2]
[398924805,1765999840726,-500.0,0.00016438,2]
[398924806,1765999840735,-500.0,0.00016438,2]
[398924807,1765999840744,-500.0,0.00016438,2]
[398924808,1765999840754,-500.0,0.00016438,2]
[398924809,1765999840763,-500.0,0.00016438,2]
[398924810,1765999840773,-500.0,0.00016438,2]
[398924811,1765999840782,-500.0,0.00016438,2]
[398924812,1765999840791,-500.0,0.00016438,2]
[398924813,1765999840800,-500.0,0.00016438,2]
[398924814,1765999840809,-500.0,0.00016438,2]
[398924815,1765999840818,-500.0,0.00016438,2]
[398924816,1765999840827,-500.0,0.00016438,2]
[398924817,1765999840837,-500.0,0.00016438,2]
[398924818,1765999840846,-500.0,0.00016438,2]
[398924819,1765999840856,-500.0,0.00016438,2]
[398924820,1765999840864,-500.0,0.00016438,2]
[398924821,1765999840873,-500.0,0.00016438,2]
[398924822,1765999840882,-500.0,0.00016438,2]
[398924823,1765999840892,-500.0,0.00016438,2]
[398924824,1765999840901,-500.0,0.00016438,2]
[398924825,1765999840911,-301.35638101,0.00016438,2]
[398924826,1765999840920,-500.0,0.00016438,2]
[398924827,1765999840929,-500.0,0.00016438,2]
[398924828,1765999840939,-500.0,0.00016438,2]
[398924829,1765999840948,-500.0,0.00016438,2]
[398924830,1765999840958,-500.0,0.00016438,2]
[398924831,1765999840967,-500.0,0.00016438,2]
[398924832,1765999840977,-500.0,0.00016438,2]
[398924833,1765999840987,-500.0,0.00016438,2]
[398924834,1765999840996,-500.0,0.00016438,2]
[398924835,1765999841005,-500.0,0.00016438,2]
[398924836,1765999841014,-8027.21,0.00016438,2]
[398924837,1765999841023,-900.0,0.00016438,2]
[398924838,1765999841032,-800.0,0.00016438,2]
[398924839,1765999841042,-12931.97700701,0.00016545,2]
[398924840,1765999841052,-1500.0,0.00016568,2]
[398924841,1765999841061,-1500.0,0.00016568,2]
[398924842,1765999841071,-1500.0,0.00016568,2]
[398924843,1765999841080,-358.48883582,0.000166,2]
[398924844,1765999841090,-1000.0,0.00016786,2]
[398924845,1765999841099,-309.0,0.00016893,2]
[398924846,1765999841108,-386.74264538,0.000169,2]
[398924847,1765999841117,-4093.89507314,0.000169,2]
[398924848,1765999841127,-1949.78015876,0.000169,2]
[398924849,1765999841136,-453.02407209,0.00016906,2]
[398924850,1765999841145,-501.40165484,0.00016973,2]
[398924851,1765999841154,-167.51806982,0.00016973,2]
[398924852,1765999841163,-549.65597916,0.00016973,2]
[398924853,1765999841172,-500.0,0.00016973,2]
[398924854,1765999841182,-500.0,0.00016973,2]
[398924855,1765999841191,-169.22673215,0.00016973,2]
[398924856,1765999841200,-500.0,0.00016973,2]
[398924857,1765999841209,-500.0,0.00016973,2]
[398924858,1765999841219,-500.0,0.00016973,2]
[398924859,1765999841228,-500.0,0.00016973,2]
[398924860,1765999841237,-500.0,0.00016973,2]
[398924861,1765999841246,-500.0,0.00016973,2]
[398924862,1765999841255,-500.0,0.00016973,2]
[398924863,1765999841265,-500.0,0.00016973,2]
[398924864,1765999841274,-500.0,0.00016973,2]
[398924865,1765999841284,-501.15889228,0.00016973,2]
[398924866,1765999841293,-500.5536388,0.00016973,2]
[398924867,1765999841302,-561.7402289,0.00016973,2]
[398924868,1765999841311,-500.35110535,0.00016973,2]
[398924869,1765999841321,-500.55328394,0.00016973,2]
[398924870,1765999841330,-500.0,0.00016973,2]
[398924871,1765999841341,-500.0,0.00016973,2]
[398924872,1765999841351,-500.0,0.00016973,2]
[398924873,1765999841360,-500.0,0.00016973,2]
[398924874,1765999841369,-500.0,0.00016973,2]
[398924875,1765999841378,-500.0,0.00016973,2]
[398924876,1765999841387,-179.43625326,0.00016973,2]
[398924877,1765999841396,-500.0,0.00016973,2]
[398924878,1765999841405,-500.0,0.00016973,2]
[398924879,1765999841414,-161.98577807,0.00016973,2]
[398924880,1765999841423,-500.0,0.00016973,2]
[398924881,1765999841432,-150.0,0.00016973,2]
[398924882,1765999841442,-500.0,0.00016986,2]
[398924883,1765999841451,-2198.0,0.00016986,2]
[398924884,1765999841460,-658.26669488,0.0001699,2]
[398924885,1765999841470,-658.26669488,0.0001699,2]
[398924886,1765999841479,-658.26669488,0.0001699,2]
[398924887,1765999841487,-151.0,0.00016997,2]
[398924888,1765999841496,-500.0,0.00016999,2]
[398924889,1765999841505,-500.0,0.00016999,2]
[398924890,1765999841514,-2000.0,0.00017,2]
[398924891,1765999841523,-2000.0,0.00017,2]
[398924892,1765999841532,-2000.0,0.00017,2]
[398924893,1765999841541,-2000.0,0.00017,2]
[398924894,1765999841550,-2000.0,0.00017,2]
[398924895,1765999841558,-250.0,0.00017,2]
[398924896,1765999841567,-2000.0,0.00017,2]
[398924897,1765999841576,-2000.0,0.00017,2]
[398924898,1765999841585,-676.041,0.00017,2]
[398924899,1765999841594,-2000.0,0.00017,2]
[398924900,1765999841603,-2454421.23213356,0.00017,2]
[398924901,1765999841655,-624.134,0.00017,2]
[398924902,1765999841666,-16894.61903361,0.00017,2]
[398924903,1765999841677,-76588.01654757,0.00017,2]
[398924904,1765999841787,-2500.0,0.00013757,2]
[398924905,1765999841797,-3142.35356194,0.00017,2]
[398924906,1765999841807,-444.64251,0.00017,2]
[398924907,1765999841818,-443.58598797,0.00017,2]
[398924908,1765999841833,-1075.98206226,0.00017,2]
[398924909,1765999841844,-23082.90469115,0.00017,2]
[398924910,1765999841862,-801.50537532,0.00017,2]
[398924920,1765999842683,-604250.8194246,0.00017,2]
[398924921,1765999842696,-24939.32795166,0.00017,2]
[398924922,1765999843261,-959.62648003,0.00017,2]
[398924923,1765999843318,-7272.30772007,0.00017,2]
[398924924,1765999843374,-15135.09587023,0.00017,2]
[398924930,1765999845623,-404.73403491,0.00017,2]
[398924935,1765999845674,-332031.74651871,0.00017,2]
[398924936,1765999845742,-293348.9310438,0.00017,2]
[398924937,1765999845754,-521.50544742,0.00017,2]
[398924938,1765999845766,-6804.27014214,0.00017,2]
[398924939,1765999845855,-2164.14465,0.00017,2]
[398924940,1765999845867,-1587.635991,0.00017,2]
[398924941,1765999845878,-540.52,0.00017,2]
[398924942,1765999845890,-4363.76389369,0.00017,2]
[398924943,1765999845901,-929.12355463,0.00017,2]
[398924974,1766000154287,153.48,7.443e-05,2]
[398924975,1766000154520,153.48,8.188e-05,2]
[398924976,1766000155012,153.48,8.932e-05,2]
[398924977,1766000155093,153.48,9.676e-05,2]
[398924978,1766000155158,153.48,0.00010421,2]
[398924979,1766000155359,153.48,0.00011165,2]
[398924980,1766000155562,153.48,0.00011909,2]
[398926687,1766000782816,999.0,0.00014294,3]
[398926706,1766001031700,-153.48,0.00012654,2]
[398926708,1766001031709,-254.0,0.00012654,2]
[398926710,1766001031718,-1200.0,0.00013371,2]
[398926712,1766001031726,-300.0,0.00013372,2]
[398926714,1766001031736,-150.0,0.00013372,2]
[398926715,1766001031745,-229.42336051,0.00013372,2]
[398926716,1766001031756,-70.57663949,0.00013372,2]
[398926717,1766001031765,-500.0,0.00013373,2]
[398926718,1766001031774,-308.88079663,0.00013373,2]
[398926719,1766001031785,-191.11920337,0.00013373,2]
[398926720,1766001031794,-167.07033056,0.00013373,2]
[398926721,1766001031803,-50.26326426,0.00013373,2]
[398926722,1766001031814,-111.19817815,0.00013373,2]
[398926723,1766001031823,-174.68173524,0.00013373,2]
[398926724,1766001031832,-500.0,0.00013373,2]
[398926725,1766001031841,-362.45517721,0.00013373,2]
[398926726,1766001031850,-169.22673215,0.00013373,2]
[398926727,1766001031859,-500.0,0.00013373,2]
[398926728,1766001031868,-500.0,0.00013373,2]
[398926729,1766001031877,-500.0,0.00013373,2]
[398926730,1766001031886,-500.55328394,0.00013373,2]
[398926731,1766001031896,-500.0,0.00013373,2]
[398926732,1766001031905,-500.0,0.00013373,2]
[398926733,1766001031914,-500.0,0.00013373,2]
[398926735,1766001031924,-245.00979009,0.00013373,2]
[398926738,1766001031935,-254.99020991,0.00013373,2]
[398926740,1766001031944,-501.40165484,0.00013373,2]
[398926742,1766001031953,-163.6645509,0.00013373,2]
[398926744,1766001031962,-500.0,0.00013373,2]
[398926746,1766001031971,-223.96742893,0.00013373,2]
[398926748,1766001031980,-500.0,0.00013373,2]
[398926750,1766001031990,-163.04694688,0.00013373,2]
[398926754,1766001031999,-172.70389334,0.00013373,2]
[398926757,1766001032009,-500.5536388,0.00013373,2]
[398926759,1766001032018,-500.0,0.00013373,2]
[398926761,1766001032027,-276.35412541,0.00013373,2]
[398926762,1766001032035,-168.53762372,0.00013373,2]
[398926765,1766001032045,-500.0,0.00013373,2]
[398926767,1766001032058,-500.0,0.00013373,2]
[398926769,1766001032067,-500.0,0.00013373,2]
[398926771,1766001032076,-500.0,0.00013373,2]
[398926773,1766001032085,-500.0,0.00013373,2]
[398926775,1766001032095,-500.0,0.00013373,2]
[398926777,1766001032104,-172.5432271,0.00013373,2]
[398926779,1766001032113,-500.0,0.00013373,2]
[398926781,1766001032123,-636.696853,0.00013373,2]
[398926782,1766001032132,-500.0,0.00013373,2]
[398926784,1766001032142,-162.80787779,0.00013373,2]
[398926786,1766001032151,-500.0,0.00013373,2]
[398926788,1766001032160,-500.65867875,0.00013373,2]
[398926790,1766001032169,-500.0,0.00013373,2]
[398926792,1766001032178,-500.0,0.00013373,2]
[398926794,1766001032187,-500.0,0.00013373,2]
[398926796,1766001032196,-500.0,0.00013373,2]
[398926798,1766001032205,-535.93880539,0.00013373,2]
[398926800,1766001032214,-500.0,0.00013373,2]
[398926802,1766001032223,-165.73663313,0.00013373,2]
[398926804,1766001032232,-875.57,0.00013373,2]
[398926806,1766001032242,-153.48,0.00013398,2]
[398926808,1766001032251,-875.57,0.00013647,2]
[398926811,1766001032261,-764.18,0.00013699,2]
[398926813,1766001032270,-300.0,0.00013919,2]
[398926815,1766001032279,-195.0,0.00013919,2]
[398926816,1766001032288,-151.3194567,0.00013919,2]
[398926818,1766001032297,-391.87908379,0.00013919,2]
[398926820,1766001032306,-634.05894568,0.00013921,2]
[398926822,1766001032315,-167.51806982,0.00013921,2]
[398926824,1766001032324,-500.35110535,0.00013921,2]
[398926826,1766001032333,-1000.0,0.00013921,2]
[398926828,1766001032341,-998.60294116,0.00013921,2]
[398926830,1766001032350,-549.65597916,0.00013921,2]
[398926832,1766001032360,-532.7120465,0.00013921,2]
[398926835,1766001032376,-467.2879535,0.00013921,2]
[398926837,1766001032385,-561.7402289,0.00013921,2]
[398926839,1766001032394,-1000.0,0.00013921,2]
[398926841,1766001032403,-1000.0,0.00013921,2]
[398926843,1766001032412,-563.17181758,0.00013921,2]
[398926845,1766001032424,-437.65776516,0.00013921,2]
[398926847,1766001032433,-1000.0,0.00013921,2]
[398926849,1766001032442,-1002.16839762,0.00013921,2]
[398926850,1766001032451,-1000.0,0.00013921,2]
[398926851,1766001032460,-1000.0,0.00013921,2]
[398926852,1766001032469,-1000.0,0.00013921,2]
[398926853,1766001032477,-1000.0,0.00013921,2]
[398926854,1766001032486,-834.11795043,0.00013921,2]
[398926855,1766001032495,-1000.0,0.00013921,2]
[398926856,1766001032504,-501.15889228,0.00013921,2]
[398926857,1766001032513,-1000.0,0.00013921,2]
[398926858,1766001032522,-1000.0,0.00013921,2]
[398926859,1766001032530,-1000.0,0.00013921,2]
[398926860,1766001032539,-875.57,0.00013921,2]
[398926861,1766001032548,-64.80048884,0.00013949,2]
[398926864,1766001032560,-287.57868463,0.00013949,2]
[398926865,1766001032571,-274.69399709,0.00013949,2]
[398926867,1766001032580,-500.0,0.00013949,2]
[398926869,1766001032589,-500.0,0.00013949,2]
[398926871,1766001032598,-500.0,0.00013949,2]
[398926873,1766001032607,-352.68587798,0.00013949,2]
[398926894,1766001037754,-147.31412202,0.00013949,2]
[398926896,1766001037764,-500.0,0.00013949,2]
[398926898,1766001037773,-500.0,0.00013949,2]
[398926899,1766001037782,-500.0,0.00013949,2]
[398926900,1766001037791,-500.0,0.00013949,2]
[398926901,1766001037800,-500.0,0.00013949,2]
[398926902,1766001037809,-515.11457043,0.00013949,2]
[398926903,1766001037818,-500.0,0.00013949,2]
[398926904,1766001037827,-500.0,0.00013949,2]
[398926905,1766001037836,-500.0,0.0001395,2]
[398926906,1766001037845,-500.0,0.0001395,2]
[398926907,1766001037854,-500.0,0.0001395,2]
[398926908,1766001037863,-500.0,0.0001395,2]
[398926909,1766001037874,-3224.62,0.0001395,2]
[398926910,1766001037883,-3010.11,0.0001395,2]
[398926911,1766001037892,-999.99,0.0001395,2]
[398926912,1766001037902,-299.99,0.0001395,2]
[398926913,1766001037911,-7932.56,0.0001395,2]
[398926914,1766001037919,-8350.49,0.0001395,2]
[398926915,1766001037928,-150.99,0.0001395,2]
[398926916,1766001037938,-150.99,0.0001395,2]
[398926917,1766001037947,-9999.99,0.0001395,2]
[398926918,1766001037956,-200.0,0.00013998,2]
[398926919,1766001037966,-277.89,0.00014075,2]
[398926920,1766001037975,-153.48,0.00014142,2]
[398926921,1766001037983,-153.98,0.00014184,2]
[398926922,1766001037992,-875.57,0.00014195,2]
[398926923,1766001038002,-1000.0,0.00014293,2]
[398926924,1766001038011,-270.0,0.00014376,2]
[398926925,1766001038020,-15279.25711801,0.00014393,2]
[398926927,1766001038029,-160.77899003,0.00014393,2]
[398926929,1766001038039,-875.57,0.00014468,2]
[398926931,1766001038048,-1000.0,0.00014468,2]
[398926932,1766001038061,-1500.0,0.00014468,2]
[398926933,1766001038070,-500.0,0.00014468,2]
[398926934,1766001038079,-1000.0,0.00014468,2]
[398926936,1766001038088,-1500.0,0.00014468,2]
[398926938,1766001038099,-500.71124086,0.00014468,2]
[398926940,1766001038108,-1500.0,0.00014468,2]
[398926942,1766001038118,-1000.0,0.00014468,2]
[398926944,1766001038129,-1000.0,0.00014468,2]
[398926947,1766001038139,-1500.0,0.00014468,2]
[398926949,1766001038149,-1500.0,0.00014468,2]
[398926952,1766001038159,-255.0,0.00014481,2]
[398926954,1766001038168,-151.0,0.00014481,2]
[398926956,1766001038178,-323.78320815,0.00014483,2]
[398926958,1766001038188,-500.0,0.00014483,2]
[398926961,1766001038197,-232.51581136,0.00014483,2]
[398926964,1766001038206,-500.0,0.00014483,2]
[398926966,1766001038216,-301.96740577,0.00014483,2]
[398926968,1766001038226,-500.0,0.00014483,2]
[398926971,1766001038236,-760000.0,0.00014484,2]
[398926974,1766001038246,-6680.3459,0.00014493,2]
[398926977,1766001038255,-30887.51,0.00014593,2]
[398926980,1766001038265,-420.0,0.00014659,2]
[398926983,1766001038274,-15279.25711799,0.00014672,2]
[398926985,1766001038284,-1680.0,0.00014708,2]
[398926987,1766001038294,-875.57,0.00014742,2]
[398926989,1766001038303,-153.48,0.00014887,2]
[398926991,1766001038312,-15279.25711799,0.0001495,2]
[398926993,1766001038322,-153.98,0.00014972,2]
[398926995,1766001038330,-1600.0,0.00015001,2]
[398926997,1766001038339,-200.0,0.00015007,2]
[398926999,1766001038348,-500.0,0.00015007,2]
[398927001,1766001038358,-500.0,0.00015007,2]
[398927003,1766001038367,-500.0,0.00015007,2]
[398927005,1766001038375,-500.0,0.00015007,2]
[398927007,1766001038384,-500.0,0.00015007,2]
[398927009,1766001038393,-500.0,0.00015007,2]
[398927011,1766001038402,-500.0,0.00015007,2]
[398927013,1766001038411,-500.0,0.00015007,2]
[398927015,1766001038421,-500.0,0.00015007,2]
[398927017,1766001038429,-500.0,0.00015007,2]
[398927019,1766001038438,-467.83399074,0.00015007,2]
[398927021,1766001038447,-500.0,0.00015007,2]
[398927022,1766001038457,-500.0,0.00015007,2]
[398927025,1766001038467,-500.0,0.00015007,2]
[398927027,1766001038476,-500.0,0.00015007,2]
[398927029,1766001038485,-500.0,0.00015007,2]
[398927031,1766001038495,-500.0,0.00015007,2]
[398927033,1766001038504,-500.0,0.00015007,2]
[398927035,1766001038514,-500.0,0.00015007,2]
[398927037,1766001038524,-200.0,0.00015007,2]
[398927039,1766001038533,-151.0,0.00015007,2]
[398927041,1766001038542,-151.0,0.00015007,2]
[398927043,1766001038552,-151.0,0.00015007,2]
[398927045,1766001038561,-151.0,0.00015007,2]
[398927047,1766001038570,-151.0,0.00015007,2]
[398927049,1766001038580,-151.0,0.00015007,2]
[398927051,1766001038589,-151.0,0.00015007,2]
[398927052,1766001038598,-151.0,0.00015007,2]
[398927055,1766001038608,-151.0,0.00015007,2]
[398927056,1766001038617,-151.0,0.00015007,2]
[398927059,1766001038627,-151.0,0.00015007,2]
[398927061,1766001038637,-151.0,0.00015007,2]
[398927063,1766001038645,-151.0,0.00015007,2]
[398927065,1766001038655,-875.57,0.00015016,2]
[398927067,1766001038665,-2000.0,0.00015016,2]
[398927069,1766001038674,-1000.0,0.00015016,2]
[398927071,1766001038683,-446.79619718,0.00015016,2]
[398927073,1766001038692,-2000.0,0.00015016,2]
[398927075,1766001038702,-766.8433042,0.00015016,2]
[398927077,1766001038712,-15279.25711799,0.00015229,2]
[398927079,1766001038721,-160.77899003,0.00015229,2]
[398927081,1766001038729,-200.0,0.0001523,2]
[398927083,1766001038739,-150.00000001,0.00015288,2]
[398927085,1766001038748,-150.0,0.00015288,2]
[398927087,1766001038757,-150.0,0.00015288,2]
[398927089,1766001038766,-150.0,0.00015288,2]
[398927091,1766001038776,-150.0,0.00015288,2]
[398927092,1766001038786,-150.0,0.00015288,2]
[398927095,1766001038795,-150.0,0.00015288,2]
[398927097,1766001038805,-150.0,0.00015288,2]
[398927099,1766001038815,-150.0,0.00015288,2]
[398927101,1766001038824,-150.0,0.00015288,2]
[398927103,1766001038834,-150.0,0.00015288,2]
[398927105,1766001038844,-150.0,0.00015288,2]
[398927107,1766001038853,-150.0,0.00015288,2]
[398927109,1766001038865,-150.0,0.00015288,2]
[398927111,1766001038875,-150.0,0.00015288,2]
[398927113,1766001038885,-930.24,0.00015289,2]
[398927115,1766001038894,-500.0,0.00015289,2]
[398927117,1766001038903,-500.0,0.00015289,2]
[398927119,1766001038913,-500.0,0.00015289,2]
[398927121,1766001038923,-500.0,0.00015289,2]
[398927123,1766001038932,-875.64154985,0.0001529,2]
[398927125,1766001038942,-150.0,0.00015308,2]
[398927127,1766001038951,-150.0,0.00015314,2]
[398927129,1766001038961,-150.0,0.00015317,2]
[398927131,1766001038970,-150.0,0.00015325,2]
[398927133,1766001038979,-150.0,0.00015325,2]
[398927135,1766001038988,-150.0,0.00015327,2]
[398927137,1766001038998,-150.0,0.00015329,2]
[398927139,1766001039009,-150.0,0.00015336,2]
[398927141,1766001039018,-150.0,0.0001534,2]
[398927143,1766001039028,-150.0,0.00015346,2]
[398927145,1766001039037,-150.0,0.0001535,2]
[398927147,1766001039048,-2500.0,0.0001536,2]
[398927149,1766001039060,-150.0,0.00015362,2]
[398927151,1766001039069,-150.0,0.00015363,2]
[398927153,1766001039078,-150.0,0.00015366,2]
[398927155,1766001039088,-150.0,0.00015367,2]
[398927157,1766001039102,-150.0,0.00015371,2]
[398927159,1766001039111,-150.0,0.00015373,2]
[398927161,1766001039123,-16103.14,0.00015374,2]
[398927163,1766001039134,-150.0,0.00015376,2]
[398927165,1766001039145,-150.0,0.00015385,2]
[398927167,1766001039155,-150.0,0.00015391,2]
[398927169,1766001039167,-150.0,0.00015392,2]
[398927171,1766001039178,-150.0,0.00015398,2]
[398927173,1766001039188,-150.0,0.00015401,2]
[398927175,1766001039198,-150.0,0.00015405,2]
[398927177,1766001039208,-150.0,0.00015406,2]
[398927179,1766001039219,-150.0,0.00015409,2]
[398927181,1766001039229,-150.0,0.00015412,2]
[398927183,1766001039239,-150.0,0.00015418,2]
[398927185,1766001039249,-150.0,0.00015418,2]
[398927187,1766001039259,-150.0,0.00015429,2]
[398927188,1766001039268,-150.0,0.00015433,2]
[398927191,1766001039279,-150.0,0.00015433,2]